[Event "Chelyabinskiy variant-A 2021"]
[Site "Chelyabinsk"]
[Date "2021.03.27"]
[Round "5.5"]
[White "Frolyanov, Dmitry"]
[Black "Sitnikov, Anton"]
[Result "1-0"]
[ECO "C70"]
[WhiteElo "2542"]
[BlackElo "2437"]
[Annotator "ChessBase"]
[PlyCount "63"]
[EventDate "2021.03.23"]
[EventType "swiss"]
[EventCountry "RUS"]
[SourceTitle "playchess.com"]
[Source "ChessBase"]
[SourceQuality "1"]
[TimeControl "5400+30"]

1. e4 {[%emt 0:00:00]} e5 {[%emt 0:00:57]} 2. Nf3 {[%emt 0:00:00]} Nc6 {[%emt 0:00:11]} 3. Bb5 {[%emt 0:00:00]} a6 {[%emt 0:00:09]} 4. Ba4 {[%emt 0:00:00]} Nge7 {[%emt 0:00:10]} 5. c3 {[%emt 0:00:41]} g6 {[%emt 0:01:30]} 6. d4 {[%emt 0:00:44]} exd4 {[%emt 0:00:30]} 7. cxd4 {[%emt 0:00:08]} Bg7 {[%emt 0:00:10]} 8. d5 {[%emt 0:02:18]} Na5 {[%emt 0:01:50]} 9. Nbd2 {[%emt 0:08:39]} b5 {[%emt 0:04:30]} 10. Bc2 {[%emt 0:00:08]} d6 {[%emt 0:02:30]} 11. O-O {[%emt 0:00:48]} O-O {[%emt 0:00:30]} 12. Rb1 {[%emt 0:03:40]} c5 {[%emt 0:00:30]} 13. b3 {[%emt 0:01:01]} Bb7 {[%emt 0:03:30]} 14. Re1 {[%emt 0:01:13]} Rc8 {[%emt 0:07:00]} 15. Nf1 {[%emt 0:01:27]} Ba8 {[%emt 0:05:41]} 16. Ng3 {[%emt 0:01:44]} c4 {[%emt 0:11:49]} 17. b4 {[%emt 0:00:40]} Nb7 {[%emt 0:00:05]} 18. h4 {[%emt 0:06:09]} Qd7 {[%emt 0:02:27]} 19. Nd4 {[%emt 0:05:53]} Nd8 {[%emt 0:07:58]} 20. h5 {[%emt 0:01:28]} f5 {[%emt 0:01:30]} 21. hxg6 {[%emt 0:02:44]} hxg6 {[%emt 0:08:30]} 22. exf5 {[%emt 0:00:48]} Nxd5 {[%emt 0:00:30]} 23. Qg4 {[%emt 0:08:39]} Qf7 {[%emt 0:13:30]} 24. Nf3 {[%emt 0:02:32]} Nf6 {[%emt 0:02:47]} 25. Qh3 {[%emt 0:03:24]} Bxf3 {[%emt 0:01:33]} 26. fxg6 {[%emt 0:01:49]} Qb7 {[%emt 0:02:14]} 27. gxf3 {[%emt 0:01:10]} Rc7 {[%emt 0:02:24]} 28. Nf5 {[%emt 0:02:42]} d5 {[%emt 0:00:52]} 29. Bf4 {[%emt 0:05:01]} Rd7 {[%emt 0:00:22]} 30. Kg2 {[%emt 0:01:46]} d4 {[%emt 0:02:44]} 31. Be4 {[%emt 0:00:42]} Qb6 {[%emt 0:00:53]} 32. Bd5+ 1-0

[Event "Chelyabinskiy variant-A 2021"]
[Site "Chelyabinsk"]
[Date "2021.03.27"]
[Round "5.6"]
[White "Fedorov, Alexei"]
[Black "Simantsev, Mikhail"]
[Result "1-0"]
[ECO "B12"]
[WhiteElo "2529"]
[BlackElo "2389"]
[Annotator "ChessBase"]
[PlyCount "49"]
[EventDate "2021.03.23"]
[EventType "swiss"]
[EventCountry "RUS"]
[SourceTitle "playchess.com"]
[Source "ChessBase"]
[SourceQuality "1"]
[TimeControl "5400+30"]

1. e4 {[%emt 0:00:00]} c6 {[%emt 0:13:18]} 2. d4 {[%emt 0:01:57]} d5 {[%emt 0:02:55]} 3. e5 {[%emt 0:00:06]} Bf5 {[%emt 0:00:06]} 4. Nd2 {[%emt 0:00:10]} e6 {[%emt 0:00:16]} 5. Nb3 {[%emt 0:00:08]} Nd7 {[%emt 0:00:17]} 6. Nf3 {[%emt 0:00:36]} c5 {[%emt 0:00:16]} 7. Be2 {[%emt 0:05:18]} c4 {[%emt 0:09:51]} 8. Nbd2 {[%emt 0:00:08]} b5 {[%emt 0:00:01]} 9. Nf1 {[%emt 0:01:29]} h6 {[%emt 0:19:16]} 10. Ne3 {[%emt 0:00:22]} Bh7 {[%emt 0:00:24]} 11. g3 {[%emt 0:06:25]} Ne7 {[%emt 0:04:49]} 12. Nh4 {[%emt 0:01:29]} Nc6 {[%emt 0:03:31]} 13. f4 {[%emt 0:02:36]} Be7 {[%emt 0:03:46]} 14. Nhg2 {[%emt 0:00:12]} Qa5+ {[%emt 0:06:18]} 15. c3 {[%emt 0:10:56]} b4 {[%emt 0:04:44]} 16. Bd2 {[%emt 0:00:23]} bxc3 {[%emt 0:06:10]} 17. Bxc3 {[%emt 0:00:55]} Bb4 {[%emt 0:01:21]} 18. Qd2 {[%emt 0:03:37]} O-O {[%emt 0:06:34]} 19. O-O {[%emt 0:02:51]} Rab8 {[%emt 0:05:05]} 20. f5 {[%emt 0:03:16]} Bxc3 {[%emt 0:08:07]} 21. bxc3 {[%emt 0:00:13]} Qa3 {[%emt 0:00:23]} 22. Bg4 {[%emt 0:03:47]} exf5 {[%emt 0:01:23]} 23. Bxf5 {[%emt 0:01:47]} Bxf5 {[%emt 0:00:44]} 24. Nxf5 {[%emt 0:00:41]} Ne7 {[%emt 0:00:46]} 25. Qc1 {[%emt 0:00:37]} 1-0

[Event "Chelyabinskiy variant-A 2021"]
[Site "Chelyabinsk"]
[Date "2021.03.27"]
[Round "5.8"]
[White "Bryakin, Mikhail"]
[Black "Grachev, Alexey"]
[Result "1-0"]
[ECO "A01"]
[WhiteElo "2464"]
[BlackElo "2302"]
[Annotator "ChessBase"]
[PlyCount "105"]
[EventDate "2021.03.23"]
[EventType "swiss"]
[EventCountry "RUS"]
[SourceTitle "playchess.com"]
[Source "ChessBase"]
[SourceQuality "1"]
[TimeControl "5400+30"]

1. b3 {[%emt 0:03:22]} Nf6 {[%emt 0:00:10]} 2. Bb2 {[%emt 0:00:07]} g6 {[%emt 0:00:07]} 3. Bxf6 {[%emt 0:00:07]} exf6 {[%emt 0:00:03]} 4. d4 {[%emt 0:00:09]} f5 {[%emt 0:02:18]} 5. e3 {[%emt 0:01:22]} a5 {[%emt 0:01:26]} 6. a4 {[%emt 0:03:25]} Bg7 {[%emt 0:01:58]} 7. g3 {[%emt 0:00:59]} O-O {[%emt 0:02:23]} 8. Bg2 {[%emt 0:00:35]} d6 {[%emt 0:05:47]} 9. Ne2 {[%emt 0:00:32]} c6 {[%emt 0:00:31]} 10. O-O {[%emt 0:01:11]} Nd7 {[%emt 0:07:16]} 11. Nd2 {[%emt 0:09:32]} Nf6 {[%emt 0:01:12]} 12. c3 {[%emt 0:03:46]} Re8 {[%emt 0:05:13]} 13. Qc2 {[%emt 0:01:38]} Qe7 {[%emt 0:02:15]} 14. Rab1 {[%emt 0:04:40]} Ne4 {[%emt 0:01:50]} 15. Nf4 {[%emt 0:03:14]} Bd7 {[%emt 0:02:47]} 16. Rfe1 {[%emt 0:02:20]} Ra7 {[%emt 0:03:27]} 17. c4 {[%emt 0:05:19]} h5 {[%emt 0:10:28]} 18. h4 {[%emt 0:10:13]} Kh8 {[%emt 0:05:29]} 19. Rbc1 {[%emt 0:03:00]} Kg8 {[%emt 0:12:18]} 20. c5 {[%emt 0:07:43]} dxc5 {[%emt 0:04:45]} 21. Nxe4 {[%emt 0:02:23]} fxe4 {[%emt 0:00:12]} 22. Qxc5 {[%emt 0:01:53]} Qxc5 {[%emt 0:00:54]} 23. dxc5 {[%emt 0:01:55]} Raa8 {[%emt 0:02:11]} 24. Rc4 {[%emt 0:03:05]} Bf5 {[%emt 0:00:42]} 25. Rd1 {[%emt 0:01:52]} Bf8 {[%emt 0:00:43]} 26. Kf1 {[%emt 0:12:31]} Re5 {[%emt 0:02:05]} 27. Rdc1 {[%emt 0:00:31]} Rd8 {[%emt 0:04:40]} 28. Ke1 {[%emt 0:00:21]} Rd7 {[%emt 0:02:38]} 29. Bf1 {[%emt 0:01:28]} Re8 {[%emt 0:02:02]} 30. Ne2 {[%emt 0:03:06]} Re5 {[%emt 0:03:23]} 31. Nd4 {[%emt 0:04:45]} Bg4 {[%emt 0:01:40]} 32. Be2 {[%emt 0:01:26]} Rdd5 {[%emt 0:03:12]} 33. Bxg4 {[%emt 0:01:24]} hxg4 {[%emt 0:00:02]} 34. b4 {[%emt 0:00:31]} axb4 {[%emt 0:00:05]} 35. Nb3 {[%emt 0:00:20]} Rd7 {[%emt 0:02:51]} 36. Rxb4 {[%emt 0:00:36]} f5 {[%emt 0:00:58]} 37. Rd4 {[%emt 0:02:24]} Ree7 {[%emt 0:03:25]} 38. Rxd7 {[%emt 0:01:30]} Rxd7 {[%emt 0:00:01]} 39. Rd1 {[%emt 0:01:16]} Rc7 {[%emt 0:03:19]} 40. Rd8 {[%emt 0:00:46]} Kf7 {[%emt 0:00:29]} 41. Kd2 {[%emt 0:00:17]} Be7 {[%emt 0:00:20]} 42. Rb8 {[%emt 0:00:55]} Ke6 {[%emt 0:01:39]} 43. Kc3 {[%emt 0:00:16]} Kd5 {[%emt 0:01:11]} 44. Rg8 {[%emt 0:01:37]} Bxc5 {[%emt 0:00:56]} 45. Rxg6 {[%emt 0:00:11]} Bd6 {[%emt 0:00:29]} 46. h5 {[%emt 0:00:41]} c5 {[%emt 0:00:12]} 47. Kc2 {[%emt 0:00:34]} Be5 {[%emt 0:00:10]} 48. Na5 {[%emt 0:00:37]} Bd6 {[%emt 0:00:51]} 49. h6 {[%emt 0:01:21]} Rh7 {[%emt 0:00:19]} 50. Kb3 {[%emt 0:00:26]} Bf8 {[%emt 0:01:00]} 51. Rf6 {[%emt 0:00:13]} Bxh6 {[%emt 0:00:24]} 52. Nc4 {[%emt 0:00:33]} Bg7 {[%emt 0:00:29]} 53. Rd6# {[%emt 0:00:16]} 1-0

[Event "Chelyabinskiy variant-A 2021"]
[Site "Chelyabinsk"]
[Date "2021.03.27"]
[Round "5.9"]
[White "Garifullina, Leya"]
[Black "Makarian, Rudik"]
[Result "0-1"]
[ECO "C80"]
[WhiteElo "2375"]
[BlackElo "2458"]
[Annotator "ChessBase"]
[PlyCount "127"]
[EventDate "2021.03.23"]
[EventType "swiss"]
[EventCountry "RUS"]
[SourceTitle "playchess.com"]
[Source "ChessBase"]
[SourceQuality "1"]
[TimeControl "5400+30"]

1. e4 {[%emt 0:00:00]} e5 {[%emt 0:01:43]} 2. Nf3 {[%emt 0:00:00]} Nc6 {[%emt 0:00:04]} 3. Bb5 {[%emt 0:00:00]} a6 {[%emt 0:00:03]} 4. Ba4 {[%emt 0:00:00]} Nf6 {[%emt 0:00:02]} 5. O-O {[%emt 0:00:06]} Nxe4 {[%emt 0:00:03]} 6. d4 {[%emt 0:00:07]} b5 {[%emt 0:00:02]} 7. Bb3 {[%emt 0:00:08]} d5 {[%emt 0:00:04]} 8. dxe5 {[%emt 0:00:09]} Be6 {[%emt 0:00:04]} 9. Be3 {[%emt 0:00:58]} Be7 {[%emt 0:00:08]} 10. c3 {[%emt 0:00:06]} Qd7 {[%emt 0:00:02]} 11. Nbd2 {[%emt 0:06:03]} Rd8 {[%emt 0:01:33]} 12. h3 {[%emt 0:07:10]} O-O {[%emt 0:03:24]} 13. Bc2 {[%emt 0:04:32]} Bf5 {[%emt 0:00:31]} 14. Nd4 {[%emt 0:06:00]} Nxd4 {[%emt 0:11:28]} 15. cxd4 {[%emt 0:00:24]} Nxd2 {[%emt 0:00:21]} 16. Qxd2 {[%emt 0:00:08]} c5 {[%emt 0:00:14]} 17. f4 {[%emt 0:11:54]} c4 {[%emt 0:10:42]} 18. Bxf5 {[%emt 0:01:10]} Qxf5 {[%emt 0:00:10]} 19. g4 {[%emt 0:01:58]} Qc8 {[%emt 0:15:34]} 20. f5 {[%emt 0:00:36]} f6 {[%emt 0:00:03]} 21. e6 {[%emt 0:01:44]} g5 {[%emt 0:06:50]} 22. h4 Qc7 {[%emt 0:03:11]} 23. Kg2 {[%emt 0:09:08]} h6 {[%emt 0:00:40]} 24. Rh1 {[%emt 0:01:14]} Kg7 {[%emt 0:00:32]} 25. Rh3 {[%emt 0:00:29]} Rh8 {[%emt 0:01:35]} 26. Rah1 {[%emt 0:00:08]} b4 {[%emt 0:04:10]} 27. Qc2 {[%emt 0:03:34]} a5 {[%emt 0:11:02]} 28. hxg5 {[%emt 0:01:24]} fxg5 {[%emt 0:00:02]} 29. Qc1 {[%emt 0:02:35]} c3 {[%emt 0:03:18]} 30. bxc3 {[%emt 0:02:40]} bxc3 {[%emt 0:01:21]} 31. Bd2 {[%emt 0:01:21]} Qc4 {[%emt 0:00:09]} 32. Qxc3 {[%emt 0:19:02]} Qe2+ {[%emt 0:00:08]} 33. Kg1 {[%emt 0:00:04]} Qxg4+ {[%emt 0:00:57]} 34. Qg3 {[%emt 0:01:07]} Qxf5 {[%emt 0:00:45]} 35. Qe5+ {[%emt 0:00:45]} Qxe5 {[%emt 0:00:41]} 36. dxe5 {[%emt 0:00:05]} Kg6 {[%emt 0:01:39]} 37. Rf3 {[%emt 0:00:58]} Rhf8 {[%emt 0:02:23]} 38. Rfh3 {[%emt 0:00:15]} Bc5+ {[%emt 0:00:49]} 39. Be3 {[%emt 0:00:24]} Bxe3+ {[%emt 0:00:06]} 40. Rxe3 {[%emt 0:00:02]} Rde8 {[%emt 0:00:21]} 41. Reh3 {[%emt 0:01:59]} Rh8 {[%emt 0:00:24]} 42. Rd3 {[%emt 0:00:06]} Rxe6 {[%emt 0:00:05]} 43. Rxd5 {[%emt 0:00:03]} Rhe8 {[%emt 0:00:13]} 44. Rxa5 {[%emt 0:00:52]} Rxe5 {[%emt 0:00:13]} 45. Ra6+ {[%emt 0:00:07]} R8e6 {[%emt 0:00:04]} 46. Rxe6+ {[%emt 0:00:08]} Rxe6 {[%emt 0:00:02]} 47. Rh3 {[%emt 0:00:10]} Re2 {[%emt 0:01:56]} 48. Ra3 {[%emt 0:00:14]} h5 {[%emt 0:00:08]} 49. Ra8 {[%emt 0:00:08]} h4 {[%emt 0:00:25]} 50. a4 {[%emt 0:00:05]} Kh5 {[%emt 0:01:51]} 51. Rb8 {[%emt 0:00:07]} Ra2 {[%emt 0:00:32]} 52. Rb4 {[%emt 0:00:09]} h3 {[%emt 0:00:06]} 53. a5 {[%emt 0:00:46]} g4 {[%emt 0:00:08]} 54. a6 {[%emt 0:00:08]} Rxa6 {[%emt 0:00:33]} 55. Rc4 {[%emt 0:00:31]} Ra5 {[%emt 0:00:23]} 56. Rb4 {[%emt 0:00:11]} g3 {[%emt 0:00:05]} 57. Rb1 {[%emt 0:00:07]} Ra4 {[%emt 0:00:06]} 58. Kh1 {[%emt 0:00:39]} Kg4 {[%emt 0:00:08]} 59. Rg1 {[%emt 0:00:24]} Ra2 {[%emt 0:00:25]} 60. Rb1 {[%emt 0:00:07]} Rf2 {[%emt 0:00:25]} 61. Ra1 {[%emt 0:01:35]} g2+ {[%emt 0:01:10]} 62. Kh2 {[%emt 0:00:04]} Rf1 {[%emt 0:00:06]} 63. Ra4+ {[%emt 0:00:09]} Kf5 {[%emt 0:00:16]} 64. Ra5+ {[%emt 0:00:15]} 0-1

[Event "Chelyabinskiy variant-A 2021"]
[Site "Chelyabinsk"]
[Date "2021.03.27"]
[Round "5.10"]
[White "Demchenko, Anton"]
[Black "Kardashevskiy, Evgeny"]
[Result "1/2-1/2"]
[ECO "C42"]
[WhiteElo "2610"]
[BlackElo "2427"]
[Annotator "ChessBase"]
[PlyCount "169"]
[EventDate "2021.03.23"]
[EventType "swiss"]
[EventCountry "RUS"]
[SourceTitle "playchess.com"]
[Source "ChessBase"]
[SourceQuality "1"]
[TimeControl "5400+30"]

1. e4 {[%emt 0:00:00]} e5 {[%emt 0:00:00]} 2. Nf3 {[%emt 0:00:00]} Nf6 {[%emt 0:00:00]} 3. Nxe5 {[%emt 0:00:00]} d6 {[%emt 0:00:14]} 4. Nf3 {[%emt 0:00:00]} Nxe4 {[%emt 0:00:14]} 5. Bd3 {[%emt 0:00:00]} Nf6 {[%emt 0:00:30]} 6. O-O {[%emt 0:00:28]} Be7 {[%emt 0:00:27]} 7. c3 {[%emt 0:00:19]} O-O {[%emt 0:00:39]} 8. Bc2 {[%emt 0:00:25]} b6 {[%emt 0:00:21]} 9. d4 {[%emt 0:00:46]} Bb7 {[%emt 0:00:27]} 10. Re1 {[%emt 0:00:41]} Nbd7 {[%emt 0:00:38]} 11. c4 {[%emt 0:00:48]} d5 {[%emt 0:12:38]} 12. cxd5 {[%emt 0:00:17]} Nxd5 {[%emt 0:01:30]} 13. Nc3 {[%emt 0:00:12]} N7f6 {[%emt 0:01:33]} 14. Nxd5 {[%emt 0:00:21]} Bxd5 {[%emt 0:02:59]} 15. Qd3 {[%emt 0:09:09]} Re8 {[%emt 0:04:49]} 16. Ne5 {[%emt 0:16:21]} c6 {[%emt 0:10:46]} 17. Bg5 {[%emt 0:16:29]} g6 {[%emt 0:02:22]} 18. Ba4 {[%emt 0:10:32]} Rc8 {[%emt 0:04:29]} 19. Rac1 {[%emt 0:02:38]} Qd6 {[%emt 0:05:39]} 20. h3 {[%emt 0:06:18]} Nh5 {[%emt 0:04:49]} 21. Bd2 {[%emt 0:00:21]} Bf6 {[%emt 0:02:46]} 22. Qa3 {[%emt 0:06:43]} Qxa3 {[%emt 0:03:47]} 23. bxa3 {[%emt 0:00:01]} Re6 {[%emt 0:04:10]} 24. Bb3 {[%emt 0:01:53]} Bxb3 {[%emt 0:07:12]} 25. axb3 {[%emt 0:00:01]} Ng7 {[%emt 0:00:45]} 26. f4 {[%emt 0:05:03]} Ree8 {[%emt 0:06:38]} 27. Nxc6 {[%emt 0:05:34]} Rxe1+ {[%emt 0:00:50]} 28. Bxe1 {[%emt 0:00:01]} Bxd4+ {[%emt 0:01:00]} 29. Kf1 {[%emt 0:00:00]} Rc7 {[%emt 0:00:42]} 30. Rc4 {[%emt 0:08:49]} Bc5 {[%emt 0:02:13]} 31. Nb4 {[%emt 0:01:33]} Rd7 {[%emt 0:02:15]} 32. Nc2 {[%emt 0:00:15]} Ne6 {[%emt 0:03:19]} 33. b4 {[%emt 0:00:09]} Bd6 {[%emt 0:01:40]} 34. g3 {[%emt 0:01:01]} Rc7 {[%emt 0:04:52]} 35. Rxc7 {[%emt 0:00:04]} Nxc7 {[%emt 0:00:53]} 36. Nd4 {[%emt 0:01:19]} h5 {[%emt 0:00:30]} 37. f5 {[%emt 0:00:59]} a6 {[%emt 0:01:03]} 38. Ke2 {[%emt 0:02:40]} Nb5 {[%emt 0:01:32]} 39. Nxb5 {[%emt 0:02:12]} axb5 {[%emt 0:00:04]} 40. Kd3 {[%emt 0:00:57]} gxf5 {[%emt 0:02:08]} 41. Kd4 {[%emt 0:00:04]} f4 {[%emt 0:02:06]} 42. Kd5 {[%emt 0:00:09]} Bb8 {[%emt 0:00:11]} 43. gxf4 {[%emt 0:01:58]} Bxf4 {[%emt 0:00:05]} 44. Bf2 {[%emt 0:02:29]} Bc1 {[%emt 0:00:32]} 45. Bxb6 {[%emt 0:00:05]} Kf8 {[%emt 0:02:18]} 46. Kc6 {[%emt 0:00:23]} Ke8 {[%emt 0:01:15]} 47. Kxb5 {[%emt 0:00:08]} Bxa3 {[%emt 0:00:05]} 48. Kc4 {[%emt 0:00:37]} Kd7 {[%emt 0:00:49]} 49. Be3 {[%emt 0:01:38]} Bb2 {[%emt 0:00:47]} 50. Kd5 {[%emt 0:00:08]} Ba3 {[%emt 0:01:34]} 51. b5 {[%emt 0:00:46]} Bd6 {[%emt 0:00:14]} 52. Bd4 {[%emt 0:00:23]} Bb8 {[%emt 0:01:29]} 53. Be5 {[%emt 0:01:25]} Ba7 {[%emt 0:00:19]} 54. Bd6 {[%emt 0:00:19]} f5 {[%emt 0:00:48]} 55. Bf4 {[%emt 0:00:08]} Bf2 {[%emt 0:00:57]} 56. Bb8 {[%emt 0:00:53]} Kc8 {[%emt 0:00:19]} 57. Bd6 {[%emt 0:00:54]} Kb7 {[%emt 0:00:15]} 58. Bf4 {[%emt 0:00:24]} Kb6 {[%emt 0:00:21]} 59. Kc4 {[%emt 0:00:05]} Bg1 {[%emt 0:00:17]} 60. Bg5 {[%emt 0:00:11]} Kc7 {[%emt 0:00:24]} 61. Bd2 {[%emt 0:01:19]} Kb6 {[%emt 0:00:10]} 62. Bf4 {[%emt 0:00:05]} Bf2 {[%emt 0:00:10]} 63. Bg5 {[%emt 0:00:17]} Kc7 {[%emt 0:00:14]} 64. Bf6 {[%emt 0:00:10]} Bg1 {[%emt 0:00:22]} 65. Kd5 {[%emt 0:01:32]} Kb6 {[%emt 0:00:30]} 66. Kc4 {[%emt 0:00:08]} Kc7 {[%emt 0:00:14]} 67. Bc3 {[%emt 0:00:12]} Kb6 {[%emt 0:00:11]} 68. Bd2 {[%emt 0:00:09]} Bf2 {[%emt 0:00:11]} 69. Bf4 {[%emt 0:00:42]} Bg1 {[%emt 0:00:11]} 70. Bg5 {[%emt 0:00:03]} Kc7 {[%emt 0:00:18]} 71. Kb4 {[%emt 0:01:21]} Bf2 {[%emt 0:00:51]} 72. Bf6 {[%emt 0:00:50]} Be3 {[%emt 0:00:28]} 73. Kc4 {[%emt 0:00:19]} Bf2 {[%emt 0:00:17]} 74. Bd4 {[%emt 0:00:36]} Bxd4 {[%emt 0:01:23]} 75. Kxd4 {[%emt 0:00:01]} Kb6 {[%emt 0:00:10]} 76. Ke5 {[%emt 0:00:07]} Kxb5 {[%emt 0:00:17]} 77. Kxf5 {[%emt 0:00:04]} Kc6 {[%emt 0:00:31]} 78. Kg5 {[%emt 0:00:06]} Kd7 {[%emt 0:00:08]} 79. Kxh5 {[%emt 0:00:06]} Ke7 {[%emt 0:00:10]} 80. Kg6 {[%emt 0:00:05]} Kf8 {[%emt 0:00:07]} 81. h4 {[%emt 0:00:04]} Kg8 {[%emt 0:00:04]} 82. h5 {[%emt 0:00:03]} Kh8 {[%emt 0:00:04]} 83. h6 {[%emt 0:00:03]} Kg8 {[%emt 0:00:04]} 84. h7+ {[%emt 0:00:02]} Kh8 {[%emt 0:00:04]} 85. Kh6 {[%emt 0:00:03]} 1/2-1/2

[Event "Chelyabinskiy variant-A 2021"]
[Site "Chelyabinsk"]
[Date "2021.03.27"]
[Round "5.11"]
[White "Azarov, Sergei"]
[Black "Kostenko, Petr"]
[Result "1-0"]
[ECO "C07"]
[WhiteElo "2604"]
[BlackElo "2418"]
[Annotator "ChessBase"]
[PlyCount "59"]
[EventDate "2021.03.23"]
[EventType "swiss"]
[EventCountry "RUS"]
[SourceTitle "playchess.com"]
[Source "ChessBase"]
[SourceQuality "1"]
[TimeControl "5400+30"]

1. e4 {[%emt 0:00:00]} e6 {[%emt 0:00:00]} 2. d4 {[%emt 0:00:00]} d5 {[%emt 0:00:00]} 3. Nd2 {[%emt 0:00:00]} c5 {[%emt 0:00:00]} 4. Ngf3 {[%emt 0:00:07]} cxd4 {[%emt 0:00:00]} 5. Nxd4 {[%emt 0:00:12]} Nc6 {[%emt 0:00:04]} 6. Bb5 {[%emt 0:00:23]} Bd7 {[%emt 0:00:07]} 7. Nxc6 {[%emt 0:00:10]} bxc6 {[%emt 0:00:08]} 8. Bd3 {[%emt 0:00:13]} Qc7 {[%emt 0:00:04]} 9. Qe2 {[%emt 0:01:02]} Ne7 {[%emt 0:00:05]} 10. b3 {[%emt 0:01:03]} Ng6 {[%emt 0:00:32]} 11. g3 {[%emt 0:00:28]} Ne5 {[%emt 0:28:07]} 12. Bb2 {[%emt 0:05:49]} Bd6 {[%emt 0:03:41]} 13. O-O {[%emt 0:03:21]} O-O {[%emt 0:00:07]} 14. c4 {[%emt 0:01:32]} dxc4 {[%emt 0:17:32]} 15. Nxc4 {[%emt 0:02:27]} Nxc4 {[%emt 0:00:11]} 16. Bxc4 {[%emt 0:00:10]} c5 {[%emt 0:00:27]} 17. f4 {[%emt 0:06:04]} Rfd8 {[%emt 0:13:53]} 18. Qg4 {[%emt 0:04:23]} Bf8 {[%emt 0:00:08]} 19. f5 {[%emt 0:06:53]} e5 {[%emt 0:05:42]} 20. Qh5 {[%emt 0:05:37]} Bc6 {[%emt 0:00:19]} 21. Bxe5 {[%emt 0:01:23]} Qb7 {[%emt 0:00:21]} 22. Rf4 {[%emt 0:05:56]} Re8 {[%emt 0:11:36]} 23. Bxg7 {[%emt 0:07:39]} Bxg7 {[%emt 0:05:24]} 24. f6 {[%emt 0:00:31]} Bxe4 {[%emt 0:04:17]} 25. Rg4 {[%emt 0:02:50]} Kh8 {[%emt 0:03:00]} 26. fxg7+ {[%emt 0:01:47]} Kg8 {[%emt 0:00:04]} 27. Rf1 {[%emt 0:03:13]} Re7 {[%emt 0:01:00]} 28. Rxe4 {[%emt 0:00:40]} Qxe4 {[%emt 0:00:25]} 29. Bxf7+ {[%emt 0:00:20]} Kxg7 {[%emt 0:00:05]} 30. Qg5+ {[%emt 0:00:08]} 1-0

[Event "Chelyabinskiy variant-A 2021"]
[Site "Chelyabinsk"]
[Date "2021.03.27"]
[Round "5.12"]
[White "Harutjunyan, Gevorg"]
[Black "Petrov, Nikita"]
[Result "1/2-1/2"]
[ECO "B48"]
[WhiteElo "2439"]
[BlackElo "2571"]
[Annotator "ChessBase"]
[PlyCount "90"]
[EventDate "2021.03.23"]
[EventType "swiss"]
[EventCountry "RUS"]
[SourceTitle "playchess.com"]
[Source "ChessBase"]
[SourceQuality "1"]
[TimeControl "5400+30"]

1. e4 {[%emt 0:00:00]} c5 {[%emt 0:00:00]} 2. Nf3 {[%emt 0:00:00]} Nc6 {[%emt 0:00:01]} 3. d4 {[%emt 0:00:35]} cxd4 {[%emt 0:00:10]} 4. Nxd4 {[%emt 0:00:05]} e6 {[%emt 0:00:41]} 5. Nc3 {[%emt 0:00:20]} Qc7 {[%emt 0:00:08]} 6. Be3 {[%emt 0:01:25]} a6 {[%emt 0:00:12]} 7. a3 {[%emt 0:03:34]} b5 {[%emt 0:06:05]} 8. Nxc6 {[%emt 0:03:54]} Qxc6 {[%emt 0:00:54]} 9. Be2 {[%emt 0:04:50]} Bb7 {[%emt 0:02:55]} 10. Qd4 {[%emt 0:11:42]} Rc8 {[%emt 0:04:49]} 11. O-O {[%emt 0:03:12]} Nf6 {[%emt 0:11:21]} 12. Bf3 {[%emt 0:05:30]} Bc5 {[%emt 0:03:32]} 13. Qd3 {[%emt 0:00:20]} e5 {[%emt 0:06:46]} 14. a4 {[%emt 0:05:15]} b4 {[%emt 0:09:29]} 15. Nd5 {[%emt 0:00:07]} Nxd5 {[%emt 0:01:07]} 16. exd5 {[%emt 0:00:24]} Qd6 {[%emt 0:01:00]} 17. Rfe1 {[%emt 0:12:28]} O-O {[%emt 0:02:33]} 18. Bxc5 {[%emt 0:01:11]} Rxc5 {[%emt 0:03:58]} 19. Qe4 {[%emt 0:01:47]} a5 {[%emt 0:02:14]} 20. Qxe5 {[%emt 0:02:17]} Qxe5 {[%emt 0:03:49]} 21. Rxe5 {[%emt 0:00:18]} d6 {[%emt 0:03:44]} 22. Re7 {[%emt 0:04:22]} Bxd5 {[%emt 0:00:36]} 23. Bxd5 {[%emt 0:00:14]} Rxd5 {[%emt 0:00:03]} 24. Rae1 {[%emt 0:00:27]} Rc5 {[%emt 0:04:11]} 25. R1e2 {[%emt 0:01:45]} g6 {[%emt 0:02:30]} 26. Kf1 {[%emt 0:02:29]} Rfc8 {[%emt 0:02:04]} 27. Re8+ {[%emt 0:00:18]} Rxe8 {[%emt 0:00:03]} 28. Rxe8+ {[%emt 0:00:05]} Kg7 {[%emt 0:00:02]} 29. Re2 {[%emt 0:00:12]} Kf6 {[%emt 0:00:43]} 30. Ke1 {[%emt 0:01:59]} Rh5 {[%emt 0:04:27]} 31. h3 {[%emt 0:02:03]} Rg5 {[%emt 0:00:31]} 32. g3 {[%emt 0:04:21]} Rh5 {[%emt 0:01:07]} 33. Rd2 {[%emt 0:00:34]} Ke6 {[%emt 0:02:01]} 34. Re2+ {[%emt 0:00:21]} Re5 {[%emt 0:09:35]} 35. f4 {[%emt 0:06:16]} Rxe2+ {[%emt 0:00:15]} 36. Kxe2 {[%emt 0:00:03]} Kd5 {[%emt 0:01:05]} 37. Kd3 {[%emt 0:02:55]} f5 {[%emt 0:04:09]} 38. b3 {[%emt 0:04:10]} Kc5 {[%emt 0:04:00]} 39. Ke3 {[%emt 0:00:31]} d5 {[%emt 0:02:13]} 40. Kd3 {[%emt 0:00:22]} d4 {[%emt 0:01:29]} 41. Ke2 {[%emt 0:00:26]} Kd5 {[%emt 0:00:18]} 42. Kd3 {[%emt 0:00:13]} h6 {[%emt 0:00:22]} 43. h4 {[%emt 0:00:25]} h5 {[%emt 0:00:25]} 44. Kd2 {[%emt 0:00:09]} Ke4 {[%emt 0:00:37]} 45. Ke2 {[%emt 0:00:06]} Kd5 {[%emt 0:00:13]} 1/2-1/2